Cogmind - Beta 17.1 @@@ ROGUE MODE // 2026.09.01 @ 21:59:40 Player: leiavoia Result: Destroyed by JU-L5C(R) with Subdweller Beam Cannon Performance ------------- Evolutions (0) 0 Regions Visited (2) 400 Robots Destroyed (18) 90 Value Destroyed (404) 404 Prototype IDs (2) 40 Alien Tech Used (0) 0 Bonus (0) 0 TOTAL SCORE: 934 Bonus ------- None Cogmind --------- Core Integrity 0/250 Matter 169/300 Energy 24/100 System Corruption 0% Temperature Cool (9) Movement Core (450) Ox8 Location -10/Subcaves Parts ------- > --- POWER (1) -------- (None) > --- PROPULSION (2) --- (None) > --- UTILITY (2) ------ Improved Heat Sink Large Storage Unit > --- WEAPON (2) ------- Medium Laser Light EM Pulse Cannon > --- INVENTORY (15) --- Wheel Huge Storage Unit High-capacity Matter Pod (200) Structural Scanner Sensor Array Signal Interpreter Seismic Detector Tractor Beam Trap Extractor (0/4) Mace Peak State ------------ > --- POWER ------------ Ion Engine > --- PROPULSION ------- Light Treads Light Treads > --- UTILITY ---------- Large Storage Unit Seismic Detector > --- WEAPON ----------- Light EM Pulse Cannon Light Assault Rifle > --- INVENTORY -------- Ion Engine Light Treads Wheel Improved Heat Sink Medium Storage Unit Medium Storage Unit Huge Storage Unit Large Matter Pod Structural Scanner Tractor Beam Trap Extractor Medium Laser Light EM Pulse Cannon Light Assault Rifle Mace [Rating: 10] Favorites ----------- Power Ion Engine Engine Ion Engine Propulsion Light Treads Treads Light Treads Utility Seismic Detector Device Seismic Detector Storage Large Storage Unit Weapon Light Assault Rifle Energy Gun Medium Laser Energy Cannon Light EM Pulse Cannon Ballistic Gun Light Assault Rifle Ballistic Cannon Light Cannon Build | -11 -10 -10 ------- Run | Yrd Mat Sub Slots Evolved . | . . . Power . | . . . Propulsion . | . . . Utility . | . . . Weapon . | . . . Parts Attached 20 | 7 6 7 Power 3 | 1 . 2 Engine 3 | 1 . 2 Core . | . . . Reactor . | . . . Propulsion 3 | 2 . 1 Treads 3 | 2 . 1 Leg . | . . . Wheel . | . . . Hover . | . . . Flight . | . . . Utility 7 | 2 4 1 Device 2 | 1 . 1 Storage 5 | 1 4 . Processor . | . . . Hackware . | . . . Protection . | . . . Artifact . | . . . Weapon 7 | 2 2 3 Energy Gun 1 | . . 1 Energy Cannon 2 | . 2 . Ballistic Gun 2 | 2 . . Ballistic Cannon 2 | . . 2 Launcher . | . . . Special Weapon . | . . . Impact Weapon . | . . . Slashing Weapon . | . . . Piercing Weapon . | . . . Special Melee Weapon . | . . . Unidentified Prototypes . | . . . Parts Lost 8 | . . 8 Power 2 | . . 2 Propulsion 3 | . . 3 Utility . | . . . Weapon 3 | . . 3 Highest Loss Streak 8 | . . 8 To Critical Strikes . | . . . Average Backups 12 | 1 12 14 Power . | . 1 . Propulsion 1 | . 1 1 Utility 6 | . 6 8 Weapon 3 | . 3 3 Tool/Special . | . . . Unused Backups 9 | . 1 8 Power . | . . . Propulsion 1 | . . 1 Utility 7 | . 1 6 Weapon 1 | . . 1 Tool/Special . | . . . Average Slot Usage (%) 99 | . 100 98 Engine 13 | . 14 13 Treads 27 | . 28 26 Device 14 | . 14 14 Storage 14 | . 14 14 Energy Cannon 11 | . 6 25 Ballistic Gun 15 | . 21 . Peak Build Rating 10 | 7 10 10 Average Rating 8 | 5 8 9 On Entrance 5 | . 7 10 Avg Prop Armor Cover (%) . | . . . Naked Turns . | . . . Heaviest Build 34 | 13 34 34 Greatest Support 40 | 40 40 40 Greatest Overweight (x) . | . . . Average Overweight (x) . | . . . Largest Inventory Capacity 25 | 8 25 15 Average Capacity 13 | 7 13 15 Most Carried 15 | 3 15 15 Average Carried 12 | 1 12 14 Final Capacity 15 | 8 15 15 Final Carried 15 | 3 15 10 Class Distribution -------------------- 100% | Mutant Dominant Class ---------------- Mutant | -10/Materials Mutant | -10/Subcaves Resources | -11 -10 -10 ----------- Run | Yrd Mat Sub Matter Collected 794 | 207 581 6 Remotely . | . . . Salvage Created 586 | 156 266 164 Parts 40 | 11 18 11 Haulers Intercepted 1 | . 1 . Recyclers Shooed . | . . . Parts Field Recycled . | . . . Retrieved Matter . | . . . Parts Self-Destructed 7 | . . 7 Prevented . | . . . Parts Restored . | . . . Kills | -11 -10 -10 ------- Run | Yrd Mat Sub Combat Hostiles Destroyed 11 | . 7 4 Guns 6 | . 5 1 Cannons 4 | . 2 2 Classes Destroyed 8 | 3 4 1 Worker 1 | 1 . . Builder 1 | . 1 . Tunneler 3 | 3 . . Hauler 1 | . 1 . Recycler 1 | 1 . . Swarmer 3 | . 3 . Grunt 4 | . 4 . Subdweller 4 | . . 4 Best Kill Streak 5 | 5 3 2 Combat Bots Only 3 | . 3 2 Max Kills in Single Turn 1 | 1 1 1 Gunslinging . | . . . Exploded . | . . . Melee . | . . . Uniques/NPCs Destroyed . | . . . Combat | -11 -10 -10 -------- Run | Yrd Mat Sub Hostile Shots Fired 93 | . 38 55 Missed 24 | . 7 17 Hits 69 | . 31 38 Projectile 69 | . 31 38 Critical Strikes 3 | . 1 2 Damage Taken 1218 | . 315 903 Core 263 | . 39 224 Absorbed by Shields . | . . . Core Remaining (%) 100 | 100 . . Volleys Fired 89 | 17 39 33 Largest 2 | 2 2 2 Hottest 112 | 40 112 112 Shots Fired 164 | 34 78 52 Gun 111 | 34 66 11 Cannon 53 | . 12 41 Launcher . | . . . Special . | . . . Kinetic 124 | 34 66 24 Thermal 11 | . . 11 Explosive . | . . . Electromagnetic 29 | . 12 17 Robot Hit Streak 9 | 8 9 7 Robot Miss Streak 3 | 2 3 3 Penetration Max . | . . . Secondary Targets 1 | . 1 . Max Gunslinging Chain 1 | . 1 . Shots Hit Robots 104 | 22 44 38 Core Hits 38 | 11 19 8 Critical Kills . | . . . Critical Parts Destroyed . | . . . Critical Strikes 2 | . . 2 Burn 1 | . . 1 Blast 1 | . . 1 Melee Attacks . | . . . Impact . | . . . Slashing . | . . . Piercing . | . . . Sneak Attacks . | . . . Combat Hostiles . | . . . Follow-up Attacks . | . . . Damage Inflicted 1314 | 187 456 671 Guns 618 | 187 334 97 Cannons 650 | . 80 570 Explosions 32 | . 32 . Melee . | . . . Ramming 14 | . 10 4 Kinetic 864 | 187 334 343 Thermal 97 | . . 97 Explosive 32 | . 32 . Electromagnetic 307 | . 80 227 Impact . | . . . Slashing . | . . . Piercing . | . . . Highest Corruption . | . . . Average Corruption . | . . . Corruption Purged . | . . . Corruption Blocked . | . . . Overload Shots . | . . . Overflow Damage 2 | . 2 . Projectiles 2 | . 2 . Explosions . | . . . Melee . | . . . Knockbacks 4 | . . 4 Impact 1 | . . 1 Kinetic 3 | . . 3 Secondary . | . . . Self-Inflicted Damage 15 | . 15 . Shots 1 | . 1 . Rammed 2 | . 1 1 Targets Rammed 2 | . 1 1 Kicked . | . . . Crushed . | . . . Highest Temperature 289 | . 153 289 Average Temperature 57 | . 40 139 Received Heat Transfer 672 | . 126 546 Siege Activations . | . . . Martial Activations . | . . . Shielding Activations . | . . . Robots Disrupted . | . . . Combat Hostiles . | . . . Robots Corrupted 1 | . . 1 Combat Hostiles 1 | . . 1 Parts Fried 2 | . 1 1 Impact Corruptions . | . . . Robots Melted . | . . . Combat Hostiles . | . . . Parts Melted 1 | . . 1 Heat Transferred 370 | . . 370 Parts Sabotaged . | . . . Parts Stolen . | . . . Parts Stripped . | . . . Power Chain Reactions . | . . . Alert | -11 -10 -10 ------- Run | Yrd Mat Sub Maximum Alert Level . | . . . Low Security (%) 100 | 100 100 . Level 1 . | . . . Level 2 . | . . . Level 3 . | . . . Level 4 . | . . . Level 5 . | . . . High Security . | . . . Max Security . | . . . Peak Influence 108 | 10 108 . Initial . | . . . Average 22 | 1 24 . Influence Increases 325 | 25 300 . Destroy 0b10 Robot/C 140 | . 140 . Destroy 0b10 Robot/NC 35 | 25 10 . Destroy Leader 32 | . 32 . Successful Hack 30 | . 30 . Disable Machine 45 | . 45 . Destroy Structure 28 | . 28 . Lose Combat Pursuer 15 | . 15 . Influence Decreases 325 | 25 286 14 Entered New Map 7 | . . 7 Time Decay 318 | 25 286 7 Squads Dispatched 2 | . 2 . Investigation . | . . . Extermination . | . . . Reinforcement 2 | . 2 . Assault . | . . . Garrison . | . . . Intercept . | . . . Searches Triggered . | . . . Construction Impeded . | . . . Haulers Reinforced . | . . . Active Scanning Responses . | . . . Cargo Convoy Interrupts . | . . . Stealth | -11 -10 -10 --------- Run | Yrd Mat Sub Distress Signals 2 | . 2 . Communications Jammed . | . . . Distress Signals . | . . . Times Spotted 22 | . 17 5 Peak Tracking Total 5 | . 5 2 Tactical Retreats 1 | . 1 . Traps | -11 -10 -10 ------- Run | Yrd Mat Sub Traps Triggered . | . . . Indirectly . | . . . Trap Hack Attempts . | . . . Triggered . | . . . Disarmed . | . . . Reprogrammed . | . . . Reused . | . . . Traps Extracted . | . . . Installed . | . . . Triggered . | . . . Machines | -11 -10 -10 ---------- Run | Yrd Mat Sub Machines Disabled 3 | . 3 . Max in Single Turn 2 | . 2 . Machines Repaired . | . . . Machines Dismantled . | . . . Machines Sabotaged . | . . . Overloaded Fab Kills . | . . . Hacking | -11 -10 -10 --------- Run | Yrd Mat Sub Machines Accessed 7 | . 7 . Terminals 5 | . 5 . Fabricators . | . . . Repair Stations . | . . . Recycling Units 2 | . 2 . Scanalyzers . | . . . Garrison Access . | . . . Total Hacks 22 | . 22 . Successful 9 | . 9 . Failed 13 | . 13 . Catastrophic 1 | . 1 . Database Lockouts . | . . . Manual 16 | . 16 . Terminals 18 | . 18 . Fabricators . | . . . Repair Stations . | . . . Recycling Units 4 | . 4 . Scanalyzers . | . . . Garrison Access . | . . . Terminal Hacks 8 | . 8 . Part Schematic 1 | . 1 . Robot Analysis 5 | . 5 . Prototype ID Bank 1 | . 1 . Hauler Manifests 1 | . 1 . Fabricator Hacks . | . . . Repair Station Hacks . | . . . Recycling Unit Hacks 1 | . 1 . Retrieve Components 1 | . 1 . Scanalyzer . | . . . Garrison Access Hacks . | . . . Unauthorized Hacks . | . . . Terminals . | . . . Fabricators . | . . . Repair Stations . | . . . Recycling Units . | . . . Scanalyzers . | . . . Garrison Access . | . . . Data Cores Recovered . | . . . Used . | . . . Hacking Detections 6 | . 6 . Full Trace Events . | . . . Feedback Events . | . . . Feedback Blocked . | . . . Robot Schematics Acquired . | . . . Robots Built . | . . . Authchips . | . . . Time . | . . . Total Robot Build Rating . | . . . Part Schematics Acquired 1 | . 1 . Parts Built . | . . . Authchips . | . . . Time . | . . . Total Part Build Rating . | . . . Part Studies Acquired . | . . . Parts Repaired . | . . . Time . | . . . Parts Recycled . | . . . Recycled Matter . | . . . Retrieved Matter . | . . . Retrieved Components 9 | . 9 . Parts Scanalyzed . | . . . Part Schematics Acquired . | . . . Parts Damaged . | . . . Bothacking | -11 -10 -10 ------------ Run | Yrd Mat Sub Used RIF Installer . | . . . Robots Hacked . | . . . Non-combat . | . . . Combat . | . . . Robot Hacks Applied . | . . . Relay Couplers Released . | . . . Fabnet Peak Effective % . | . . . Robots Rewired . | . . . Allies Hacked . | . . . Hacks Repelled . | . . . Allies | -11 -10 -10 -------- Run | Yrd Mat Sub Total Allies . | . . . Largest Group . | . . . Highest-Rated Group . | . . . Highest-Rated Ally . | . . . Total Orders . | . . . Ally Attacks . | . . . Total Damage . | . . . Kills . | . . . Allies Corrupted . | . . . Allies Melted . | . . . Intel | -11 -10 -10 ------- Run | Yrd Mat Sub Active Infowar (turns) 2271 | 32 1654 585 Seismic 2271 | 32 1654 585 Robot Analysis Total 5 | . 5 . Derelict Logs Recovered . | . . . Drone Launches . | . . . Drone Recoveries . | . . . Exploration | -11 -10 -10 ------------- Run | Yrd Mat Sub Turns Passed 2417 | 150 1654 613 Spaces Moved 908 | 61 556 291 Core 4 | 4 . . Treads 904 | 57 556 291 Legs . | . . . Wheels . | . . . Hover . | . . . Flight . | . . . Fastest Speed 50 | 50 160 160 Average Speed 159 | 152 160 160 Slowest Speed 160 | 160 160 160 Overloaded Moves . | . . . Propulsion Burnouts . | . . . Robots Hopped . | . . . Potential Cave-ins . | . . . Cave-ins Triggered . | . . . Exploration Rate (%) 36 | 4 86 18 Regions Visited 2 Branch Regions 1 Pre-discovered Areas . | . . . Known Exits Taken . | . . . Unknown Exits Taken 2 | 1 1 . Scrap Searched . | . . . Spaces Dug . | . . . Terrain Destroyed 29 | . 29 . Melee . | . . . Projectile . | . . . AOE 29 | . 29 . Terrain Rammed . | . . . Walls Destroyed . | . . . Machines Disabled . | . . . Actions | -11 -10 -10 --------- Run | Yrd Mat Sub Total 1729 | 87 1256 386 Wait 685 | . 634 51 Move 906 | 60 555 291 Hop . | . . . Pick Up 18 | 3 14 1 Fast Attach 7 | 7 . . Attach 5 | . . 5 Detach . | . . . Swap 10 | . 7 3 Drop 7 | . 6 1 Fire 89 | 17 39 33 Melee . | . . . Ram . | . . . Kick . | . . . Crush 2 | . 1 1 Escape Stasis . | . . . Rewire . | . . . Trap . | . . . Miscellaneous . | . . . Route ------- -11/Scrapyard -10/Materials (discovered 5 exits: [*Mat x2] / [*Min x2] / [*Sub]) -10/Subcaves (discovered 1 exit: [*Mat]) History --------- Turn | Location | Event 14 | -11/Scrapyard | Discovered new exit (range 15) 151 | -11/Scrapyard | Entered Materials 153 | -10/Materials | Discovered new exit (range 10) 317 | -10/Materials | Build established: Mutant 493 | -10/Materials | Discovered new exit (range 16) 651 | -10/Materials | Derelicts attacked the area 1445 | -10/Materials | Discovered new exit (range 12) 1558 | -10/Materials | Discovered new exit (range 5) 1794 | -10/Materials | Discovered new exit (range 8) 1805 | -10/Materials | Entered Subcaves 1806 | -10/Subcaves | Approached by a straggling Scientist 2130 | -10/Subcaves | Discovered new exit (range 11) 2376 | -10/Subcaves | Core integrity fell below 50% 2401 | -10/Subcaves | Core integrity fell below 20% 2418 | -10/Subcaves | Destroyed by JU-L5C(R) with Subdweller Beam Cannon Last Messages --------------- 02340_ Lgt. EM Pulse Cannon destroyed. 02348_ L2-O1O(R) affixes Scrap Shield Fragment to Scrap Shield. 02368_ L2-O1O(R) knocked back. 02369_ Lgt. Treads destroyed. 02372_ L2-O1O(R) knocked back. 02375_ JU-L5C(R) knocked back. 02378_ L2-O1O(R) Disposable Heat Sink blasted off. 02386_ Lgt. Treads destroyed. 02386_ Critical hit (Meltdown: +300). 02390_ Lgt. Cannon destroyed. 02394_ Lgt. Treads destroyed. 02394_ Lgt. Ion Engine destroyed. 02399_ Destroyed Scrap Shield. 02400_ Lgt. Cannon destroyed. 02402_ L2-O1O(R) destroyed. 02407_ JU-L5C(R) affixes Scrap Shield Fragment to Scrap Shield. 02414_ JU-L5C(R) suffers critical hit (Burn). Map ----- +----------------------------------------------------+ | ?????????????????????????????????????????????? | | ?????????????????????????????????????????????? | | ?????????????????????????????????????????????? | | ?????????????????????????????????????????????? | | ?????????????????????????????????????????????? | | ?????????????????????????????????????????????? | | ?????????????????????????????????????????????? | | ?????????????????????????????????????????????? | | ?????????????????????????????????????????????? | | ?????????????????????????????????????????????? | | ?????????????????????????????????????????????? | | ?????????????????????????????????????????????? | | ?????????????????????????????????????????????? | | ???????????????????????????##????????????????? | | ??????????????????????????? ##???????????????? | | ?????????????????????????? #???????????????? | | ????????????????????????? #???????????????? | | ????????????????????????? #???????????????? | | ?????????????????????????*! #???????????????? | | ?????????????????????????%!%%#???????????????? | | ????????????????????????? % #???????????????? | | ????????????????????????? % !##??????????????? | | ????????????????????????## R% #??????????????? | | ???????????????????????##; % #??????????????? | | ?????????????????????### ##?????????????? | | ?????????????????????# @ #?????????????? | | ????????????????????#; #?????????????? | | ????????????????????## #?????????????? | | ?????????????????????# ##?????????????? | | ?????????????????????## #??????????????? | | ?########?????????????## #??????????????? | | ? ## ???????????????# #??????????????? | | ?# #??????###?###??# #??????????????? | | ?# #??##### #?# ##?; #??????????????? | | ?# ### #?# #?## #??????????????? | | ?# ### ##?##;# ##?????????????? | | ?# ## #???# #?????????????? | | ?# ## #?# #???# ##?????????????? | | ?# ### ##### ###?# #??????????????? | | ?#* ## ## ### ##??????????????? | | ## &&# ## ##???????????????? | | [%* #### #????????????????? | | # =&!%! ##??# ## #????????????????? | | ## % ## ## ##??# ## ##???????????????? | | ?## ###### #?## ### ###?????????????? | | ?## ##???# #?# #?# #?????????????? | | ?# #???## ##?? #?## #?????????????? | | ## ##???# ##??# #?## ##?????????????? | | # #??## #?##""### ##??????????????? | | # #### #?#" ## ##???????????????? | +----------------------------------------------------+ Best States ------------- Heat Dissipation 39 Energy Generation 10 Energy Capacity 250 Matter Stores 300 Matter Capacity 300 Sight Range 16 Terrain Scan Density 10 Evasion (%) 40 Recoil Reduction 2 Item Schematics ----------------- Huge Storage Unit | -10/Materials | Hacked Robot Schematics ------------------ None Fabricated ------------ Nothing Repaired ---------- Nothing Studied --------- None Alien Tech Used ----------------- None Achievements -------------- None Challenges ------------ None Game ------ Seed SubatomicSixArchive Manual? 0 Play Time 00:14:56 Cumulative 1215.7 hours Start 2026.09.01 @ 21:45:42 End 2026.09.01 @ 21:59:40 Sessions 1 Manual Loads 0 Difficulty Rogue Special Mode None Game No. 266 Rogue 234 Adventurer 31 Explorer 1 Win Type - Total 58 Types 37/2/9/7/0/0/2/0/0/1 Lore% 78 Gallery% 77 Achievement% 53 Wizard Run 0 Options --------- Layout 1 ASCII 0 Keyboard 0 Movement Arrows Keybinds 0 Fullscreen 1 Font 24/Terminus Map View 50x40 Zoom Use 0% Tactical HUD 1 Map Filters NONE Filters NONE Steam 1 RUN: 82a04e16-fcbc-47c1-b154-2fbd187ca927